Cogmind - Beta 13 --- EXPLORER MODE // 2024.05.16 @ 20:27:31 // Winter2019/RPGLIKE Player: H3-RMN Result: Self-destructed Performance ------------- Evolutions (6) 3000 Regions Visited (20) 4000 Robots Destroyed (302) 1510 Value Destroyed (11451) 11451 Prototype IDs (54) 1080 Alien Tech Used (1) 200 Bonus (3771) 3771 TOTAL SCORE: 25012 Bonus ------- High Alert Combat Kills 425 Follower Combat Kills 486 Entered Garrisons 600 Used RIF Installer 2000 Met Data Miner 300 Met Zhirov 300 Friendly Fire -340 Cogmind --------- Core Integrity 826/850 Matter 300/300 Energy 820/820 System Corruption 0% Temperature Cool (0) Movement Treading (160) Location -4/Factory Parts ------- > --- POWER (3) -------- Graviton Reactor Graviton Reactor Graviton Reactor > --- PROPULSION (4) --- Improved Heavy Treads Improved Heavy Treads > --- UTILITY (11) ----- Improved Terrain Scanner Transport Network Coupler Advanced Salvage Targeting Computer Core Analyzer Improved Weapon Cycler Improved Transmission Jammer Makeshift Ablative Armor Powered Armor Advanced Shield Generator Improved Force Field Long-range Tractor Beam > --- WEAPON (4) ------- Thermic Laser Experimental Thermic Cannon Neutron Missile Launcher Neutron Missile Launcher > --- INVENTORY (7) ---- Protomatter-95 Relay Coupler [NC] (84) Relay Coupler [Proto] (26) Advanced System Restoration Module Trap Extractor (2/4 EM Surge) Transdimensional Reconstructor Helical Railgun Peak State ------------ > --- POWER ------------ Graviton Reactor Graviton Reactor Graviton Reactor > --- PROPULSION ------- Improved Heavy Treads Improved Heavy Treads > --- UTILITY ---------- Improved Terrain Scanner Transport Network Coupler Advanced Salvage Targeting Computer Core Analyzer Improved Weapon Cycler Improved Transmission Jammer Makeshift Ablative Armor Powered Armor Advanced Shield Generator Improved Force Field Long-range Tractor Beam > --- WEAPON ----------- Thermic Laser Experimental Thermic Cannon Neutron Missile Launcher Neutron Missile Launcher > --- INVENTORY -------- Protomatter Relay Coupler [NC] Relay Coupler [Proto] Advanced System Restoration Module Trap Extractor Transdimensional Reconstructor Helical Railgun [Rating: 141] Favorites ----------- Power Graviton Reactor Engine Improved Deuterium Engine Power Core Nuclear Core Reactor Graviton Reactor Propulsion Improved Heavy Treads Treads Improved Heavy Treads Wheel Armored Wheel Utility Powered Armor Device Improved Terrain Scanner Storage High-capacity Matter Pod Processor Core Analyzer Protection Powered Armor Weapon Thermic Laser Energy Gun Thermic Laser Energy Cannon Experimental Thermic Cannon Ballistic Gun Minigun Launcher Neutron Missile Launcher Special Melee Weapon Datajack Build | -11 -10 -10 -10 -9 -8 -8 -8 -8 -7 -7 -7 -6 -6 -6 -5 -5 -5 -5 -4 -4 ------- Run | Yrd Mat Min Exi Min Mat Gar Mat Gar Fac Low Dat Pro Fac Gar Fac Upp Upp Zhi Pro Fac Slots Evolved 18 | 5 2 . . 1 2 . 3 . 2 . . . 2 . 1 . . . . . Power 2 | . . . . . . . . . 1 . . . 1 . . . . . . . Propulsion 3 | 1 1 . . . . . 1 . . . . . . . . . . . . . Utility 10 | 3 . . . 1 1 . 2 . 1 . . . 1 . 1 . . . . . Weapon 3 | 1 1 . . . 1 . . . . . . . . . . . . . . . Parts Attached 145 | 11 6 1 . 2 15 4 20 1 31 2 . 2 25 6 13 2 . 4 . . Power 17 | 1 . . . . 1 . . 1 4 . . . 10 . . . . . . . Engine 4 | 1 . . . . . . . . 3 . . . . . . . . . . . Core 5 | . . . . . 1 . . 1 1 . . . 2 . . . . . . . Reactor 8 | . . . . . . . . . . . . . 8 . . . . . . . Propulsion 17 | 3 2 . . . 2 1 5 . 1 1 . . 1 . 1 . . . . . Treads 10 | 2 1 . . . 2 . 2 . 1 . . . 1 . 1 . . . . . Leg . | . . . . . . . . . . . . . . . . . . . . . Wheel 7 | 1 1 . . . . 1 3 . . 1 . . . . . . . . . . Hover . | . . . . . . . . . . . . . . . . . . . . . Flight . | . . . . . . . . . . . . . . . . . . . . . Utility 75 | 5 1 . . 1 7 3 8 . 17 1 . 1 10 4 12 2 . 3 . . Device 47 | 2 1 . . 1 4 3 1 . 13 1 . 1 7 3 9 1 . . . . Storage 2 | . . . . . . . 1 . . . . . 1 . . . . . . . Processor 8 | 1 . . . . . . 3 . 2 . . . 1 . 1 . . . . . Hackware . | . . . . . . . . . . . . . . . . . . . . . Protection 18 | 2 . . . . 3 . 3 . 2 . . . 1 1 2 1 . 3 . . Artifact . | . . . . . . . . . . . . . . . . . . . . . Weapon 36 | 2 3 1 . 1 5 . 7 . 9 . . 1 4 2 . . . 1 . . Energy Gun 6 | 1 . . . . . . 1 . 1 . . . 2 1 . . . . . . Energy Cannon 3 | . . . . . . . . . 2 . . . 1 . . . . . . . Ballistic Gun 13 | 1 3 1 . . 2 . 2 . 2 . . 1 . 1 . . . . . . Ballistic Cannon . | . . . . . . . . . . . . . . . . . . . . . Launcher 13 | . . . . 1 3 . 3 . 4 . . . 1 . . . . 1 . . Special Weapon . | . . . . . . . . . . . . . . . . . . . . . Impact Weapon . | . . . . . . . . . . . . . . . . . . . . . Slashing Weapon . | . . . . . . . . . . . . . . . . . . . . . Piercing Weapon . | . . . . . . . . . . . . . . . . . . . . . Special Melee Weapon 1 | . . . . . . . 1 . . . . . . . . . . . . . Unidentified Prototypes 18 | . . . . . . . 1 . 6 . . . 7 1 1 . . 2 . . Corrupted Parts 1 | . . . . . . . . . 1 . . . . . . . . . . . System Corruption 6 | . . . . . . . . . 6 . . . . . . . . . . . Parts Lost 1 | . . . . . . . 1 . . . . . . . . . . . . . Power 1 | . . . . . . . 1 . . . . . . . . . . . . . Propulsion . | . . . . . . . . . . . . . . . . . . . . . Utility . | . . . . . . . . . . . . . . . . . . . . . Weapon . | . . . . . . . . . . . . . . . . . . . . . Highest Loss Streak 1 | . . . . . . . 1 . . . . . . . . . . . . . To Critical Strikes . | . . . . . . . . . . . . . . . . . . . . . Average Slot Usage (%) 94 | . 98 100 100 98 98 100 99 95 97 91 89 89 89 89 89 90 90 90 90 90 Engine 2 | . 10 9 9 8 1 . . . 1 10 10 10 1 . . . . . . . Core 2 | . . . . . 5 7 4 1 5 . . . . . . . . . . . Reactor 5 | . . . . . . . . . . . . . 8 14 13 13 13 13 13 13 Treads 9 | . 11 18 18 16 14 14 11 11 9 5 5 5 4 4 4 9 9 9 9 9 Wheel 6 | . 11 9 9 8 7 7 10 11 10 7 5 5 4 4 3 . . . . . Device 23 | . 27 27 27 30 29 28 23 23 17 20 21 21 20 23 23 27 27 27 27 27 Processor 10 | . 3 . . . . . 9 11 19 15 15 15 14 14 13 13 13 13 13 13 Protection 10 | . 10 9 9 8 11 14 11 11 10 10 10 10 9 9 9 9 9 9 9 9 Energy Gun 3 | . 1 . . . . . . . . . . . 7 8 9 9 9 7 4 4 Energy Cannon 2 | . . . . . . . . . . 5 5 5 4 4 4 4 4 4 4 4 Ballistic Gun 8 | . 22 27 27 23 13 14 11 11 9 5 5 5 1 . . . . . . . Launcher 7 | . . . . 1 11 14 10 11 10 10 10 10 5 4 4 4 4 5 9 9 Naked Turns . | . . . . . . . . . . . . . . . . . . . . . Heaviest Build 123 | 12 16 17 17 20 41 41 46 42 72 76 76 76 106 110 111 118 116 123 123 123 Greatest Support 150 | 40 26 10 10 10 10 12 40 24 75 28 28 28 75 28 150 150 150 150 150 150 Greatest Overweight (x) 4 | 1 1 1 1 1 4 4 3 1 2 3 2 2 3 3 3 . . . . . Average Overweight (x) 1 | . . 1 1 1 2 3 1 1 1 2 2 2 2 3 2 . . . . . Largest Inventory Capacity 7 | 2 2 2 2 4 4 4 5 5 6 6 6 6 6 7 7 7 7 7 7 7 Average Capacity 5 | 1 2 2 2 3 4 4 4 5 5 6 6 6 6 6 7 7 7 7 7 7 Most Carried 7 | 1 2 2 2 4 4 4 5 5 6 6 6 6 6 7 7 7 7 7 7 7 Average Carried 5 | . 1 2 2 2 3 3 4 5 5 6 6 6 5 6 6 7 7 6 7 7 Final Capacity 7 | 2 2 2 2 4 4 4 5 5 6 6 6 6 6 7 7 7 7 7 7 7 Final Carried 7 | . 2 2 2 4 4 4 5 5 6 6 6 6 6 7 7 7 7 7 7 7 Class Distribution -------------------- 57% | Hacker-Skirmisher 39% | Hacker-Tank Dominant Class ---------------- Hacker-Skirmisher | -10/Materials Hacker-Skirmisher | -10/Mines Hacker-Skirmisher | -10/Exiles Hacker-Skirmisher | -9/Mines Hacker-Skirmisher | -8/Materials Hacker-Skirmisher | -8/Garrison Hacker-Skirmisher | -8/Materials Hacker-Skirmisher | -8/Garrison Hacker-Skirmisher | -7/Factory Hacker-Tank | -7/Lower Caves Hacker-Tank | -7/Data Miner Hacker-Skirmisher | -6/Proximity Caves Hacker-Skirmisher | -6/Factory Hacker-Tank | -6/Garrison Hacker-Tank | -5/Factory Hacker-Tank | -5/Upper Caves Hacker-Tank | -5/Upper Caves Hacker-Tank | -5/Zhirov Hacker-Tank | -4/Proximity Caves Hacker-Tank | -4/Factory Resources | -11 -10 -10 -10 -9 -8 -8 -8 -8 -7 -7 -7 -6 -6 -6 -5 -5 -5 -5 -4 -4 ----------- Run | Yrd Mat Min Exi Min Mat Gar Mat Gar Fac Low Dat Pro Fac Gar Fac Upp Upp Zhi Pro Fac Matter Collected 5013 | 319 422 53 . 262 534 554 847 330 883 124 . 20 305 60 180 20 25 40 35 . Remotely 4675 | 206 422 53 . 262 534 554 810 330 715 124 . 20 295 60 170 20 25 40 35 . Salvage Created 11778 | 133 504 36 . 219 637 586 1300 248 1682 448 . 180 1264 1185 1620 97 163 207 846 423 Parts 528 | 6 34 9 . 16 36 33 111 14 107 17 . 8 30 18 48 2 3 2 25 9 Haulers Intercepted 15 | . 2 . . . 3 . 4 . 1 . . . 1 . 4 . . . . . Recyclers Shooed 3 | . . . . . . . 1 . 1 . . . . . 1 . . . . . Parts Field Recycled . | . . . . . . . . . . . . . . . . . . . . . Retrieved Matter . | . . . . . . . . . . . . . . . . . . . . . Parts Self-Destructed . | . . . . . . . . . . . . . . . . . . . . . Prevented . | . . . . . . . . . . . . . . . . . . . . . Kills | -11 -10 -10 -10 -9 -8 -8 -8 -8 -7 -7 -7 -6 -6 -6 -5 -5 -5 -5 -4 -4 ------- Run | Yrd Mat Min Exi Min Mat Gar Mat Gar Fac Low Dat Pro Fac Gar Fac Upp Upp Zhi Pro Fac Combat Hostiles Destroyed 223 | . 10 4 . 13 18 15 27 5 27 8 . 4 16 20 23 4 3 . 20 6 Guns 103 | . 9 4 . 11 5 12 21 3 18 . . . 5 5 4 . . . 5 1 Cannons 35 | . . . . . . . . . . 2 . 1 4 8 11 3 1 . 2 3 AOE 51 | . 1 . . 2 13 3 5 2 8 6 . . 4 . 3 . 1 . 3 . Classes Destroyed 21 | 2 5 . . 2 3 1 2 . 3 . . 1 . 2 . . . . . . Worker 15 | . 1 . . 1 . . 5 . 6 . . . . . 2 . . . . . Builder 4 | . . . . . . . 1 . 2 . . . 1 . . . . . . . Tunneler 6 | 2 1 1 . . . . 1 . . . . . . . 1 . . . . . Hauler 15 | . 2 . . . 3 . 4 . 1 . . . 1 . 4 . . . . . Recycler 14 | 1 1 . . . 1 . 3 . 4 . . . 3 . 1 . . . . . Mechanic 2 | . . . . . . . . . 1 . . . 1 . . . . . . . Operator 11 | . . . . . 3 . 3 . 1 . . . 1 . 3 . . . . . Watcher 14 | . 3 . . . 3 . 3 . 4 . . . . 1 . . . . . . Swarmer 51 | . 2 4 . 2 9 3 . . 9 1 . . 2 2 4 4 . . 6 3 Cutter 3 | . . . . . . . . . . . . . . 3 . . . . . . Grunt 88 | . 8 . . 6 5 7 14 4 10 2 . 3 4 11 3 . . . 11 . Brawler 6 | . . . . . . . . . 1 2 . . 1 . . . 2 . . . Duelist 4 | . . . . . 1 . 1 . . 2 . . . . . . . . . . Sentry 33 | . . . . . 3 3 10 . 2 1 . . 2 2 5 . 1 . 1 3 Demolisher 1 | . . . . 1 . . . . . . . . . . . . . . . . Specialist 5 | . . . . . . . . . 2 . . . 2 . 1 . . . . . Hunter 14 | . . . . . . . 2 1 3 . . . 3 . 3 . . . 2 . Programmer 13 | . . . . . . 2 . . 2 . . . 2 . 7 . . . . . Behemoth 2 | . . . . . . . . . . . . 1 . 1 . . . . . . Executioner 1 | . . . . . . . . . . . . . . 1 . . . . . . Packrat 1 | . . . . . . . . . . . . . . . . . 1 . . . Assembled 4 | . . . . 4 . . . . . . . . . . . . . . . . Best Kill Streak 13 | 2 3 2 . 3 7 7 12 3 11 8 . 2 6 5 5 4 3 . 13 3 Combat Bots Only 13 | . 3 2 . 3 5 7 10 3 5 8 . 2 4 5 4 4 3 . 13 3 Max Kills in Single Turn 6 | 1 2 2 . 1 3 3 3 2 6 4 . 1 4 1 4 1 1 . 3 1 Gunslinging 1 | . . 1 . . . . . . . . . . . . . . . . . . Exploded 4 | . 1 . . 1 3 3 3 2 2 4 . . 3 . 3 . 1 . 3 . Melee . | . . . . . . . . . . . . . . . . . . . . . Uniques/NPCs Destroyed . | . . . . . . . . . . . . . . . . . . . . . Combat | -11 -10 -10 -10 -9 -8 -8 -8 -8 -7 -7 -7 -6 -6 -6 -5 -5 -5 -5 -4 -4 -------- Run | Yrd Mat Min Exi Min Mat Gar Mat Gar Fac Low Dat Pro Fac Gar Fac Upp Upp Zhi Pro Fac Hostile Shots Fired 697 | . 25 4 . 37 31 50 120 10 97 5 . 10 72 97 46 9 2 . 65 17 Missed 250 | . 8 1 . 8 13 12 35 3 41 5 . 5 26 43 24 3 1 . 18 4 Damage Taken 3859 | . 158 13 . 268 158 353 889 92 565 . . 61 366 328 212 23 8 . 289 76 Core 2443 | . 116 9 . 196 94 219 575 47 347 . . 38 234 184 128 15 6 . 192 43 Absorbed by Shields 692 | . . . . . . . . . . . . 14 . 171 77 26 8 . 313 83 Redirected to Core 2172 | . 57 9 . 163 76 185 518 47 323 . . 38 228 158 120 15 6 . 186 43 Ignored by Resistances 2783 | . 99 11 . 169 101 214 547 54 344 . . 42 228 310 171 31 9 . 356 97 Core Remaining (%) 99 | 100 . . . 98 . . . 97 . . . 100 . 100 . . . . 100 . Volleys Fired 664 | 9 40 5 . 22 31 93 97 47 77 11 . 11 36 44 73 10 4 2 37 15 Largest 3 | 2 3 3 . 3 3 2 2 2 2 2 . 1 3 3 3 1 3 1 2 2 Hottest 290 | 60 60 64 . 64 77 69 69 72 120 120 . 120 290 290 290 120 290 120 205 205 Shots Fired 1215 | 18 89 15 . 62 59 115 182 58 143 13 . 11 82 120 135 10 8 2 73 20 Gun 911 | 18 89 15 . 60 40 113 169 56 122 . . . 46 76 62 . 4 . 36 5 Cannon 242 | . . . . . . . . . 7 9 . 11 34 44 71 10 3 2 36 15 Launcher 62 | . . . . 2 19 2 13 2 14 4 . . 2 . 2 . 1 . 1 . Special . | . . . . . . . . . . . . . . . . . . . . . Kinetic 662 | 9 78 15 . 60 40 113 169 56 122 . . . . . . . . . . . Thermal 491 | 9 11 . . . . . . . 7 9 . 11 80 120 133 10 7 2 72 20 Explosive 49 | . . . . 2 19 2 8 1 9 2 . . 2 . 2 . 1 . 1 . Electromagnetic 13 | . . . . . . . 5 1 5 2 . . . . . . . . . . Robot Hit Streak 87 | 10 28 3 . 19 38 87 44 58 47 15 . 8 16 49 43 17 11 13 38 23 Robot Miss Streak 3 | 1 1 2 . 3 1 1 2 1 1 2 . 1 2 1 2 1 . . 2 1 Penetration Max . | . . . . . . . . . . . . . . . . . . . . . Secondary Targets 16 | . 1 1 . 2 . 3 3 . 6 . . . . . . . . . . . Max Gunslinging Chain 1 | . 1 1 . 1 . 1 1 . 1 . . . . . . . . . . . Shots Hit Robots 961 | 13 75 7 . 53 44 94 150 18 123 10 . 9 63 99 110 6 8 2 59 18 Core Hits 564 | 6 32 6 . 36 49 49 95 13 74 24 . 4 34 44 51 3 7 1 27 9 Critical Kills 2 | . . . . . . . . 1 1 . . . . . . . . . . . Critical Parts Destroyed . | . . . . . . . . . . . . . . . . . . . . . Critical Strikes 111 | . . . . . . . 1 1 4 2 . 3 13 32 26 3 1 . 16 9 Burn 108 | . . . . . . . . . 3 2 . 3 13 32 26 3 1 . 16 9 Destroy 3 | . . . . . . . 1 1 1 . . . . . . . . . . . Melee Attacks . | . . . . . . . . . . . . . . . . . . . . . Impact . | . . . . . . . . . . . . . . . . . . . . . Slashing . | . . . . . . . . . . . . . . . . . . . . . Piercing . | . . . . . . . . . . . . . . . . . . . . . Sneak Attacks . | . . . . . . . . . . . . . . . . . . . . . Combat Hostiles . | . . . . . . . . . . . . . . . . . . . . . Follow-up Attacks . | . . . . . . . . . . . . . . . . . . . . . Damage Inflicted 25988 | 125 1050 82 . 842 1810 1641 3317 485 3920 899 . 325 2331 2370 3710 217 359 83 1878 544 Guns 11855 | 125 814 82 . 764 666 1364 2315 247 1877 . . . 690 1195 996 . 72 . 558 90 Cannons 6645 | . . . . . . . . . 213 244 . 325 892 1175 1987 217 107 83 948 454 Explosions 7488 | . 236 . . 78 1144 277 1002 238 1830 655 . . 749 . 727 . 180 . 372 . Melee . | . . . . . . . . . . . . . . . . . . . . . Ramming . | . . . . . . . . . . . . . . . . . . . . . Kinetic 8055 | 47 693 82 . 764 666 1364 2315 247 1877 . . . . . . . . . . . Thermal 10785 | 78 357 . . . . . . . 255 244 . 325 1582 2370 3045 217 179 83 1506 544 Explosive 6209 | . . . . 78 1144 277 882 146 1316 400 . . 749 . 665 . 180 . 372 . Electromagnetic 939 | . . . . . . . 120 92 472 255 . . . . . . . . . . Impact . | . . . . . . . . . . . . . . . . . . . . . Slashing . | . . . . . . . . . . . . . . . . . . . . . Piercing . | . . . . . . . . . . . . . . . . . . . . . Highest Corruption 6 | . . . . . . 2 1 . 6 . . . . . 1 . . . . . Average Corruption 2 | . . . . . . 1 1 . 2 . . . . . 1 . . . . . Corruption Purged 11 | . . . . . . 2 1 . 7 . . . . . 1 . . . . . Corruption Blocked . | . . . . . . . . . . . . . . . . . . . . . Effects 6 | . . . . . . 2 . . 4 . . . . . . . . . . . Matter Fused 1 | . . . . . . 1 . . . . . . . . . . . . . . Heat Flow Errors 3 | . . . . . . . . . 3 . . . . . . . . . . . Energy Discharges 1 | . . . . . . . . . 1 . . . . . . . . . . . Data Loss (minor) 1 | . . . . . . 1 . . . . . . . . . . . . . . Overload Shots . | . . . . . . . . . . . . . . . . . . . . . Overflow Damage 438 | . . . . . 70 . . . 60 46 . . 80 12 78 11 . 28 42 11 Projectiles 205 | . . . . . . . . . 28 46 . . 26 12 43 11 . 28 . 11 Explosions 233 | . . . . . 70 . . . 32 . . . 54 . 35 . . . 42 . Melee . | . . . . . . . . . . . . . . . . . . . . . Knockbacks . | . . . . . . . . . . . . . . . . . . . . . Impact . | . . . . . . . . . . . . . . . . . . . . . Kinetic . | . . . . . . . . . . . . . . . . . . . . . Secondary . | . . . . . . . . . . . . . . . . . . . . . Self-Inflicted Damage 241 | . 47 . . 30 30 . 17 27 26 . . . . . 29 . . . 35 . Shots 12 | . 1 . . 1 2 . 3 2 1 . . . . . 1 . . . 1 . Rammed . | . . . . . . . . . . . . . . . . . . . . . Targets Rammed . | . . . . . . . . . . . . . . . . . . . . . Kicked . | . . . . . . . . . . . . . . . . . . . . . Crushed . | . . . . . . . . . . . . . . . . . . . . . Highest Temperature 392 | 62 169 27 . 87 72 100 290 9 293 392 . 324 288 370 388 175 172 61 200 200 Average Temperature 77 | 28 42 12 . 30 16 21 62 9 59 159 . 131 95 125 120 80 85 34 131 89 Received Heat Transfer 1742 | . 84 . . 250 99 135 567 36 141 . . 18 93 183 18 . 4 . 98 16 Effects 6 | . . . . . . . . . . 1 . 1 . 1 2 . . . 1 . Energy Bleed 2 | . . . . . . . . . . . . . . 1 . . . . 1 . Interference 2 | . . . . . . . . . . . . . . . 2 . . . . . Matter Decay 1 | . . . . . . . . . . 1 . . . . . . . . . . Short Circuit 1 | . . . . . . . . . . . . 1 . . . . . . . . Siege Activations . | . . . . . . . . . . . . . . . . . . . . . Robots Corrupted 1 | . . . . . . . 1 . . . . . . . . . . . . . Combat Hostiles 1 | . . . . . . . 1 . . . . . . . . . . . . . Parts Fried 4 | . . . . . . . 1 . . 1 . . . 2 . . . . . . Impact Corruptions . | . . . . . . . . . . . . . . . . . . . . . Robots Melted 39 | . . . . . . . . . 1 . . 3 5 9 7 1 1 . 10 2 Combat Hostiles 34 | . . . . . . . . . 1 . . 3 3 8 5 1 1 . 10 2 Parts Melted 189 | . 1 . . . . . . . 4 1 . 3 25 47 56 2 1 . 38 11 Heat Transferred 40416 | 175 400 . . . . . . . 1010 880 . 1200 5630 9931 11010 960 600 160 5790 2670 Parts Sabotaged . | . . . . . . . . . . . . . . . . . . . . . Parts Stolen . | . . . . . . . . . . . . . . . . . . . . . Parts Stripped . | . . . . . . . . . . . . . . . . . . . . . Power Chain Reactions 3 | . . . . . . . . . 2 . . . 1 . . . . . . . Alert | -11 -10 -10 -10 -9 -8 -8 -8 -8 -7 -7 -7 -6 -6 -6 -5 -5 -5 -5 -4 -4 ------- Run | Yrd Mat Min Exi Min Mat Gar Mat Gar Fac Low Dat Pro Fac Gar Fac Upp Upp Zhi Pro Fac Peak Influence 770 | 15 392 105 . 219 537 594 558 250 399 . . . 200 770 633 . . . . 255 Initial 300 | . 7 . . . 23 18 212 27 97 . . . 38 96 300 . . . . . Average 191 | 5 204 47 . 73 209 365 156 97 123 . . . 74 418 297 . . . . 157 Maximum Alert Level 3 | . 1 . . 1 2 2 2 1 1 . . . 1 3 2 . . . . 1 Low Security (%) 59 | 100 34 100 . 93 51 13 66 91 80 . . . 98 12 34 . . . . 45 Level 1 25 | . 65 . . 6 31 46 17 8 19 . . . 1 31 40 . . . . 54 Level 2 13 | . . . . . 16 39 15 . . . . . . 53 24 . . . . . Level 3 . | . . . . . . . . . . . . . . 2 . . . . . . Level 4 . | . . . . . . . . . . . . . . . . . . . . . Level 5 . | . . . . . . . . . . . . . . . . . . . . . High Security . | . . . . . . . . . . . . . . . . . . . . . Max Security . | . . . . . . . . . . . . . . . . . . . . . Squads Dispatched 29 | . 2 . . . 3 . 3 . 11 . . . 3 . 6 . . . 1 . Investigation 14 | . 2 . . . 2 . 2 . 4 . . . 1 . 2 . . . 1 . Extermination 9 | . . . . . . . . . 4 . . . 1 . 4 . . . . . Reinforcement 5 | . . . . . 1 . 1 . 2 . . . 1 . . . . . . . Assault . | . . . . . . . . . . . . . . . . . . . . . Garrison 1 | . . . . . . . . . 1 . . . . . . . . . . . Intercept . | . . . . . . . . . . . . . . . . . . . . . Searches Triggered . | . . . . . . . . . . . . . . . . . . . . . Construction Impeded . | . . . . . . . . . . . . . . . . . . . . . Haulers Reinforced 1 | . . . . . . . . . 1 . . . . . . . . . . . Active Scanning Responses . | . . . . . . . . . . . . . . . . . . . . . Cargo Convoy Interrupts 2 | . . . . . . . . . 1 . . . 1 . . . . . . . Stealth | -11 -10 -10 -10 -9 -8 -8 -8 -8 -7 -7 -7 -6 -6 -6 -5 -5 -5 -5 -4 -4 --------- Run | Yrd Mat Min Exi Min Mat Gar Mat Gar Fac Low Dat Pro Fac Gar Fac Upp Upp Zhi Pro Fac Distress Signals 7 | . . . . . 2 . 3 . . . . . . . 2 . . . . . Communications Jammed 53 | . . . . . . . . . 1 . . . 2 . 50 . . . . . Distress Signals 50 | . . . . . . . . . 1 . . . 2 . 47 . . . . . Times Spotted 302 | . 15 4 . 23 28 17 43 7 39 6 . 4 18 26 39 4 3 . 20 6 Peak Tracking Total 15 | . 4 2 . 15 4 5 8 3 4 7 . 1 4 3 4 3 2 . 5 3 Tactical Retreats 7 | . 1 . . 1 . 3 . . . . . . . 1 1 . . . . . Traps | -11 -10 -10 -10 -9 -8 -8 -8 -8 -7 -7 -7 -6 -6 -6 -5 -5 -5 -5 -4 -4 ------- Run | Yrd Mat Min Exi Min Mat Gar Mat Gar Fac Low Dat Pro Fac Gar Fac Upp Upp Zhi Pro Fac Traps Triggered 16 | . . . . . . 1 3 . 6 . . . 1 3 1 . . . . 1 Indirectly . | . . . . . . . . . . . . . . . . . . . . . Trap Hack Attempts 11 | . . . . . . . 11 . . . . . . . . . . . . . Triggered . | . . . . . . . . . . . . . . . . . . . . . Disarmed 6 | . . . . . . . . . . . . . . . . . . . . 6 Reprogrammed 11 | . 6 . . . 3 . 2 . . . . . . . . . . . . . Reused 6 | . 4 . . . . . . . 1 . . . 1 . . . . . . . Traps Extracted 7 | . . . . . 3 . 2 . 1 . . . 1 . . . . . . . Installed 4 | . . . . . . . . . 2 . . . 2 . . . . . . . Triggered 9 | . 4 . . . . . . . 1 . . 2 1 . 1 . . . . . Most Traps Carried 4 | . . . . . 3 3 3 4 4 3 3 3 3 2 2 2 2 2 2 2 Objects Rigged 2 | . 2 . . . . . . . . . . . . . . . . . . . Exploded 1 | . 1 . . . . . . . . . . . . . . . . . . . Machines | -11 -10 -10 -10 -9 -8 -8 -8 -8 -7 -7 -7 -6 -6 -6 -5 -5 -5 -5 -4 -4 ---------- Run | Yrd Mat Min Exi Min Mat Gar Mat Gar Fac Low Dat Pro Fac Gar Fac Upp Upp Zhi Pro Fac Machines Disabled 26 | . 1 . . 1 6 3 1 3 1 1 . . 1 . 3 . . . 1 4 Max in Single Turn 4 | . 1 . . 1 1 1 1 1 1 1 . . 1 . 2 . . . 1 4 Garrison Access 1 | . . . . . . . . . . . . . . . . . . . . 1 Garrison Relay 2 | . . . . . . 2 . . . . . . . . . . . . . . Machines Repaired . | . . . . . . . . . . . . . . . . . . . . . Machines Dismantled . | . . . . . . . . . . . . . . . . . . . . . Machines Sabotaged . | . . . . . . . . . . . . . . . . . . . . . Overloaded Fab Kills . | . . . . . . . . . . . . . . . . . . . . . Hacking | -11 -10 -10 -10 -9 -8 -8 -8 -8 -7 -7 -7 -6 -6 -6 -5 -5 -5 -5 -4 -4 --------- Run | Yrd Mat Min Exi Min Mat Gar Mat Gar Fac Low Dat Pro Fac Gar Fac Upp Upp Zhi Pro Fac Machines Accessed 84 | . 9 . 1 . 10 3 14 3 13 . 4 . 7 1 7 2 1 4 1 4 Terminals 50 | . 7 . . . 6 3 11 3 8 . . . 4 1 4 . 1 . 1 1 Fabricators 5 | . . . . . . . . . 1 . . . 1 . 3 . . . . . Repair Stations 1 | . . . . . 1 . . . . . . . . . . . . . . . Recycling Units 7 | . 2 . . . . . . . 3 . . . . . . . . . . 2 Scanalyzers 5 | . . . . . 2 . 2 . . . . . 1 . . . . . . . Garrison Access 5 | . . . . . 1 . 1 . 1 . . . 1 . . . . . . 1 Total Hacks 323 | . 39 . 1 . 44 10 56 9 46 . 29 . 21 3 25 2 1 17 7 13 Successful 237 | . 28 . 1 . 27 4 46 4 32 . 29 . 14 2 15 2 1 17 7 8 Failed 86 | . 11 . . . 17 6 10 5 14 . . . 7 1 10 . . . . 5 Catastrophic 13 | . . . . . 2 1 1 2 4 . . . . . 2 . . . . 1 Database Lockouts . | . . . . . . . . . . . . . . . . . . . . . Manual 139 | . 31 . . . 12 3 32 8 27 . . . 6 2 11 . . . . 7 Terminals 201 | . 36 . . . 35 10 45 9 28 . . . 10 3 11 . 1 . 7 6 Fabricators 24 | . . . . . . . . . 6 . . . 4 . 14 . . . . . Repair Stations 2 | . . . . . 2 . . . . . . . . . . . . . . . Recycling Units 18 | . 3 . . . . . . . 9 . . . . . . . . . . 6 Scanalyzers 20 | . . . . . 6 . 10 . . . . . 4 . . . . . . . Garrison Access 9 | . . . . . 1 . 1 . 3 . . . 3 . . . . . . 1 Terminal Hacks 164 | . 21 . 1 . 18 4 33 4 13 . 29 . 5 2 4 2 1 17 7 3 Record 25 | . . . 1 . . . . . . . 11 . . . . . 1 5 7 . Part Schematic 29 | . 2 . . . 3 . 6 1 2 . 10 . . . . . . 4 . 1 Robot Schematic 12 | . 4 . . . . . 2 . 1 . 5 . . . . . . . . . Robot Analysis 12 | . 3 . . . . . 5 . . . . . . . . . . 4 . . Prototype ID Bank 23 | . 8 . . . 2 . 4 . 1 . 3 . . . . . . 4 . 1 Open Door 3 | . . . . . . 1 . . . . . . . . . 2 . . . . Open DSF 1 | . . . . . . . . . . . . . 1 . . . . . . . Level Access Points 1 | . . . . . . . 1 . . . . . . . . . . . . . Branch Access Points 5 | . 1 . . . . . 1 . 1 . . . 1 . 1 . . . . . Emergency Access Points 2 | . . . . . . 1 . . . . . . . 1 . . . . . . Machine Index 4 | . . . . . 1 . 1 . 1 . . . . . 1 . . . . . Terminal Index 1 | . . . . . . . . . 1 . . . . . . . . . . . Unreport Threat 12 | . . . . . 4 . 5 . . . . . 1 . 2 . . . . . Locate Traps 9 | . 1 . . . 4 . 1 . 2 . . . 1 . . . . . . . Disarm Traps 1 | . . . . . . . . . . . . . . . . . . . . 1 Reprogram Traps 3 | . 1 . . . 2 . . . . . . . . . . . . . . . Recall Extermination 1 | . . . . . . . . . 1 . . . . . . . . . . . Recall Reinforcements 1 | . . . . . . . 1 . . . . . . . . . . . . . Hauler Manifests 4 | . . . . . 1 . 1 . 1 . . . 1 . . . . . . . Registered Components 1 | . . . . . . . 1 . . . . . . . . . . . . . Zone Layout 8 | . 1 . . . 1 . 4 . 2 . . . . . . . . . . . Garrison Registry 4 | . . . . . . 2 . 1 . . . . . 1 . . . . . . Patrol Navigation 1 | . . . . . . . . 1 . . . . . . . . . . . . Security Stations 1 | . . . . . . . . 1 . . . . . . . . . . . . Fabricator Hacks 11 | . . . . . . . . . 2 . . . 2 . 7 . . . . . Network Status 2 | . . . . . . . . . . . . . . . 2 . . . . . Load Schematic 4 | . . . . . . . . . 1 . . . 1 . 2 . . . . . Build 5 | . . . . . . . . . 1 . . . 1 . 3 . . . . . Repair Station Hacks 2 | . . . . . 2 . . . . . . . . . . . . . . . Scan Component 1 | . . . . . 1 . . . . . . . . . . . . . . . Repair 1 | . . . . . 1 . . . . . . . . . . . . . . . Recycling Unit Hacks 4 | . 1 . . . . . . . 2 . . . . . . . . . . 1 Report Inventory 4 | . 1 . . . . . . . 2 . . . . . . . . . . 1 Scanalyzer 18 | . . . . . 6 . 9 . . . . . 3 . . . . . . . Insert Component 7 | . . . . . 3 . 3 . . . . . 1 . . . . . . . Analyze 11 | . . . . . 3 . 6 . . . . . 2 . . . . . . . Garrison Access Hacks 5 | . . . . . 1 . 1 . 1 . . . 1 . . . . . . 1 Unlock Access 4 | . . . . . 1 . 1 . 1 . . . 1 . . . . . . . Seal Access 1 | . . . . . . . . . . . . . . . . . . . . 1 Unauthorized Hacks 33 | . 6 . . . . . 3 . 14 . . . 3 . 4 . . . . 3 Terminals 10 | . 4 . . . . . 2 . 3 . . . 1 . . . . . . . Track 4 | . . . . . . . 1 . 2 . . . 1 . . . . . . . Botnet 2 | . 2 . . . . . . . . . . . . . . . . . . . Detonate 1 | . 1 . . . . . . . . . . . . . . . . . . . Disrupt 2 | . . . . . . . 1 . 1 . . . . . . . . . . . Operators 1 | . 1 . . . . . . . . . . . . . . . . . . . Fabricators 7 | . . . . . . . . . 2 . . . 1 . 4 . . . . . Report 1 | . . . . . . . . . . . . . . . 1 . . . . . Prioritize 3 | . . . . . . . . . 1 . . . . . 2 . . . . . Haulers 3 | . . . . . . . . . 1 . . . 1 . 1 . . . . . Repair Stations . | . . . . . . . . . . . . . . . . . . . . . Recycling Units 12 | . 2 . . . . . . . 7 . . . . . . . . . . 3 Reject 4 | . . . . . . . . . 3 . . . . . . . . . . 1 Recyclers 1 | . . . . . . . . . 1 . . . . . . . . . . . Mask 5 | . . . . . . . . . 3 . . . . . . . . . . 2 Tunnel 2 | . 2 . . . . . . . . . . . . . . . . . . . Scanalyzers 1 | . . . . . . . 1 . . . . . . . . . . . . . Extract 1 | . . . . . . . 1 . . . . . . . . . . . . . Garrison Access 3 | . . . . . . . . . 2 . . . 1 . . . . . . . Reprogram 2 | . . . . . . . . . 1 . . . 1 . . . . . . . Watchers 1 | . . . . . . . . . 1 . . . . . . . . . . . Data Cores Recovered 7 | . . . . . 1 . 2 . . . . . 1 . 3 . . . . . Used 2 | . . . . . . . 1 . . . . . . . 1 . . . . . Hacking Detections 55 | . 7 . . . 6 2 9 3 9 . . . 7 1 7 . . . 1 3 Full Trace Events 12 | . . . . . 2 1 1 1 3 . . . 1 . 2 . . . 1 . Feedback Events . | . . . . . . . . . . . . . . . . . . . . . Feedback Blocked . | . . . . . . . . . . . . . . . . . . . . . Robot Schematics Acquired 12 | . 4 . . . . . 2 . 1 . 5 . . . . . . . . . Robots Built 4 | . . . . . . . . . . . . . . . 4 . . . . . Authchips . | . . . . . . . . . . . . . . . . . . . . . Time 202 | . . . . . . . . . . . . . . . 202 . . . . . Total Robot Build Rating 20 | . . . . . . . . . . . . . . . 20 . . . . . Part Schematics Acquired 39 | . 2 . . . 6 . 12 1 2 . 10 . 1 . . . . 4 . 1 Parts Built 5 | . . . . . . . . . 2 . . . 2 . 1 . . . . . Authchips . | . . . . . . . . . . . . . . . . . . . . . Time 200 | . . . . . . . . . 84 . . . 58 . 58 . . . . . Total Part Build Rating 29 | . . . . . . . . . 8 . . . 14 . 7 . . . . . Parts Repaired 1 | . . . . . 1 . . . . . . . . . . . . . . . Time 53 | . . . . . 53 . . . . . . . . . . . . . . . Parts Recycled . | . . . . . . . . . . . . . . . . . . . . . Recycled Matter . | . . . . . . . . . . . . . . . . . . . . . Retrieved Matter . | . . . . . . . . . . . . . . . . . . . . . Retrieved Components . | . . . . . . . . . . . . . . . . . . . . . Parts Scanalyzed 7 | . . . . . 3 . 3 . . . . . 1 . . . . . . . Part Schematics Acquired 7 | . . . . . 3 . 3 . . . . . 1 . . . . . . . Parts Damaged 1 | . . . . . 1 . . . . . . . . . . . . . . . Bothacking | -11 -10 -10 -10 -9 -8 -8 -8 -8 -7 -7 -7 -6 -6 -6 -5 -5 -5 -5 -4 -4 ------------ Run | Yrd Mat Min Exi Min Mat Gar Mat Gar Fac Low Dat Pro Fac Gar Fac Upp Upp Zhi Pro Fac Used RIF Installer 4 | . . . . . . 2 . 1 . . . . . 1 . . . . . . Alert ID Control 1 | . . . . . . . . . . . . . . 1 . . . . . . Structural Interface 1 | . . . . . . 1 . . . . . . . . . . . . . . Autooverride 1 | . . . . . . . . 1 . . . . . . . . . . . . Robots Hacked . | . . . . . . . . . . . . . . . . . . . . . Non-combat . | . . . . . . . . . . . . . . . . . . . . . Combat . | . . . . . . . . . . . . . . . . . . . . . Robot Hacks Applied . | . . . . . . . . . . . . . . . . . . . . . Relay Couplers Released 4 | . . . . . . 4 . . . . . . . . . . . . . . Machine Destruction 4 | . . . . . . 4 . . . . . . . . . . . . . . Fabnet Peak Effective % . | . . . . . . . . . . . . . . . . . . . . . Robots Rewired 8 | . . . . . . 3 . . . 1 . . . 4 . . . . . . Allies Hacked 1 | . . . . . . . . . . . . . . . 1 . . . . . Hacks Repelled . | . . . . . . . . . . . . . . . . . . . . . Allies | -11 -10 -10 -10 -9 -8 -8 -8 -8 -7 -7 -7 -6 -6 -6 -5 -5 -5 -5 -4 -4 -------- Run | Yrd Mat Min Exi Min Mat Gar Mat Gar Fac Low Dat Pro Fac Gar Fac Upp Upp Zhi Pro Fac Total Allies 19 | . . . . 1 . 3 . . 3 1 . . . 4 4 . . . . 3 Largest Group 3 | . . . . 1 . 3 . . 3 1 1 1 . 3 3 . . . . 3 Highest-Rated Group 138 | . . . . 31 . 76 . . 48 32 32 32 . 138 138 . . . . 138 Highest-Rated Ally 119 | . . . . 31 . 31 . . 16 32 32 32 . 119 46 . . . . 46 Total Orders . | . . . . . . . . . . . . . . . . . . . . . Ally Attacks 121 | . . . . . . 17 . . 31 . . 4 . 15 54 . . . . . Total Damage 2649 | . . . . . . 395 . . 247 . . 197 . 689 1121 . . . . . Kills 19 | . . . . . . 3 . . 1 . . . . 3 12 . . . . . Allies Corrupted . | . . . . . . . . . . . . . . . . . . . . . Allies Melted . | . . . . . . . . . . . . . . . . . . . . . Intel | -11 -10 -10 -10 -9 -8 -8 -8 -8 -7 -7 -7 -6 -6 -6 -5 -5 -5 -5 -4 -4 ------- Run | Yrd Mat Min Exi Min Mat Gar Mat Gar Fac Low Dat Pro Fac Gar Fac Upp Upp Zhi Pro Fac Robot Analysis Total 12 | . 3 . . . . . 5 . . . . . . . . . . 4 . . Derelict Logs Recovered 8 | . . . . . . . . . . 3 . 1 . . . 1 1 . 2 . Drone Launches . | . . . . . . . . . . . . . . . . . . . . . Drone Recoveries . | . . . . . . . . . . . . . . . . . . . . . Exploration | -11 -10 -10 -10 -9 -8 -8 -8 -8 -7 -7 -7 -6 -6 -6 -5 -5 -5 -5 -4 -4 ------------- Run | Yrd Mat Min Exi Min Mat Gar Mat Gar Fac Low Dat Pro Fac Gar Fac Upp Upp Zhi Pro Fac Turns Passed 16539 | 135 834 490 332 681 916 753 1808 353 2488 789 125 314 1080 1233 1343 733 645 254 876 357 Spaces Moved 10323 | 66 711 460 350 602 637 300 1135 207 1460 542 97 211 531 700 725 400 392 151 447 199 Core 4 | 4 . . . . . . . . . . . . . . . . . . . . Treads 1789 | 48 . . . . . . 1 . 16 . . . 8 . 127 400 392 151 447 199 Legs . | . . . . . . . . . . . . . . . . . . . . . Wheels 8530 | 14 711 460 350 602 637 300 1134 207 1444 542 97 211 523 700 598 . . . . . Hover . | . . . . . . . . . . . . . . . . . . . . . Flight . | . . . . . . . . . . . . . . . . . . . . . Fastest Speed 50 | 50 90 95 95 95 95 135 105 105 105 120 130 130 130 145 145 160 160 160 160 160 Average Speed 123 | 140 93 95 95 95 114 135 107 105 110 132 130 130 143 145 147 160 160 160 160 160 Slowest Speed 250 | 160 95 95 95 95 140 140 250 105 160 135 130 130 240 145 160 160 160 160 160 160 Overloaded Moves . | . . . . . . . . . . . . . . . . . . . . . Propulsion Burnouts . | . . . . . . . . . . . . . . . . . . . . . Robots Hopped . | . . . . . . . . . . . . . . . . . . . . . Cave-ins Triggered . | . . . . . . . . . . . . . . . . . . . . . Exploration Rate (%) 58 | 5 96 96 78 94 72 46 94 40 41 69 74 43 24 68 27 65 64 61 71 10 Regions Visited 20 Branch Regions 10 Pre-discovered Areas 9 | . 2 . . . . . . . . 1 1 . . . . 1 . 3 1 . Known Exits Taken 16 | 1 1 1 1 1 1 . 1 . 1 . 1 1 1 . 1 1 1 1 1 . Unknown Exits Taken 1 | . . . . . . . . . . 1 . . . . . . . . . . Scrap Searched 8 | . . . . 1 . . . . . 2 . . . . . 1 2 . 2 . Spaces Dug 68 | . . . . . . 6 9 . 13 . . 1 2 . 35 2 . . . . Terrain Destroyed 512 | . 27 . . 27 132 6 71 . 49 17 . 2 23 . 79 4 38 . 37 . Melee . | . . . . . . . . . . . . . . . . . . . . . Projectile 33 | . . . . . . . . . 1 1 . 2 6 . 13 4 . . 6 . AOE 479 | . 27 . . 27 132 6 71 . 48 16 . . 17 . 66 . 38 . 31 . Terrain Rammed . | . . . . . . . . . . . . . . . . . . . . . Walls Destroyed . | . . . . . . . . . . . . . . . . . . . . . Machines Disabled . | . . . . . . . . . . . . . . . . . . . . . Actions | -11 -10 -10 -10 -9 -8 -8 -8 -8 -7 -7 -7 -6 -6 -6 -5 -5 -5 -5 -4 -4 --------- Run | Yrd Mat Min Exi Min Mat Gar Mat Gar Fac Low Dat Pro Fac Gar Fac Upp Upp Zhi Pro Fac Total 13117 | 88 803 502 349 663 772 550 1568 293 2212 602 96 242 783 838 921 487 405 162 557 224 Wait 1516 | . 24 29 . 18 64 105 232 30 566 34 . 10 150 31 83 72 5 . 55 8 Move 10304 | 65 710 459 349 601 636 299 1135 206 1459 541 96 210 530 699 724 399 391 150 446 199 Hop . | . . . . . . . . . . . . . . . . . . . . . Pick Up 39 | . 4 . . 3 2 4 9 . 4 1 . 1 4 3 3 . . 1 . . Fast Attach 86 | 11 4 1 . 1 5 . 12 1 16 2 . 1 15 6 5 2 . 4 . . Attach 13 | . 1 . . . 2 1 3 . . . . . 4 . 1 . . 1 . . Detach 10 | 1 . . . . 2 . 2 . 1 . . . 3 1 . . . . . . Swap 47 | . 1 . . 1 8 3 5 . 15 . . 1 6 . 7 . . . . . Drop 113 | 2 5 1 . 1 12 5 19 . 23 4 . 3 19 7 6 2 . 4 . . Fire 664 | 9 40 5 . 22 31 93 97 47 77 11 . 11 36 44 73 10 4 2 37 15 Melee . | . . . . . . . . . . . . . . . . . . . . . Ram . | . . . . . . . . . . . . . . . . . . . . . Kick . | . . . . . . . . . . . . . . . . . . . . . Crush . | . . . . . . . . . . . . . . . . . . . . . Escape Stasis 24 | . . . . . . . . . 16 . . . . 8 . . . . . . Rewire 32 | . . . . . . 16 . . . 1 . . . 15 . . . . . . Trap 15 | . . . . . . . 11 . 2 . . . 2 . . . . . . . Miscellaneous 254 | . 14 7 . 16 10 24 43 9 33 8 . 5 14 24 19 2 5 . 19 2 Route ------- -11/Scrapyard -10/Materials (discovered 5 exits: *Mat x3 / *Min / Sub) -10/Mines (discovered 4 exits: *Mat x2 / *Exi / *Sub) -10/Exiles (discovered 2 exits: *Min x2) -9/Mines (discovered 2 exits: *Mat x2) -8/Materials (discovered 2 exits: *Fac / Gar) -8/Garrison (discovered 3 exits: *Mat x3) -8/Materials (discovered 4 exits: *Fac x3 / Gar) -8/Garrison (discovered 3 exits: *Fac x3) -7/Factory (discovered 5 exits: *Fac / Sto / *Low x2 / Gar) -7/Lower Caves (discovered 2 exits: *Low / *Dat) -7/Data Miner -6/Proximity Caves -6/Factory (discovered 4 exits: Fac / Low x2 / Gar) -6/Garrison (discovered 3 exits: *Fac x3) -5/Factory (discovered 5 exits: *Fac / *Upp x2 / Ext x2) -5/Upper Caves -5/Upper Caves -5/Zhirov -4/Proximity Caves -4/Factory (discovered 2 exits: *Upp x2) History --------- Turn | Location | Event 5 | -11/Scrapyard | Upgraded with Propulsion slot (x1) 5 | -11/Scrapyard | Upgraded with Utility slot (x3) 5 | -11/Scrapyard | Upgraded with Weapon slot (x1) 8 | -11/Scrapyard | Identified exit to Materials 8 | -11/Scrapyard | Discovered exit to Materials (range 17) 136 | -11/Scrapyard | Entered Materials 300 | -10/Materials | Build established: Hacker-Mutant 306 | -10/Materials | Identified exit to Mines 306 | -10/Materials | Discovered exit to Mines (range 17) 333 | -10/Materials | Identified exit to Subcaves 333 | -10/Materials | Discovered exit to Subcaves (range 6) 401 | -10/Materials | Identified exit to Materials 401 | -10/Materials | Discovered exit to Materials (range 15) 555 | -10/Materials | Discovered exit to Materials (range 9) 628 | -10/Materials | Reached level 2 634 | -10/Materials | Upgraded with Propulsion slot (x1) 634 | -10/Materials | Upgraded with Weapon slot (x1) 656 | -10/Materials | Build established: Hacker-Skirmisher 656 | -10/Materials | Discovered exit to Materials (range 15) 970 | -10/Materials | Entered Mines 1000 | -10/Mines | Discovered exit to Materials (range 12) 1006 | -10/Mines | Met a Derelict bent on vengeance 1009 | -10/Mines | Discovered exit to Materials (range 9) 1075 | -10/Mines | Identified exit to Exiles 1075 | -10/Mines | Discovered exit to Exiles (range 6) 1075 | -10/Mines | Deemed a non-threat by the Exiles lab entrance 1132 | -10/Mines | A weapon hastily lodged in a ceiling crevice suddenly fell to the ground 1411 | -10/Mines | Discovered exit to Subcaves (range 9) 1460 | -10/Mines | Entered Exiles 1460 | -10/Exiles | Found Exiles lab abandoned 1462 | -10/Exiles | Reached level 3 1473 | -10/Exiles | Identified exit to Mines 1473 | -10/Exiles | Discovered exit to Mines (range 15) 1784 | -10/Exiles | Discovered exit to Mines (range 10) 1792 | -10/Exiles | Entered Mines 1801 | -9/Mines | Assembled infested the area 1897 | -9/Mines | Identified exit to Materials 1897 | -9/Mines | Discovered exit to Materials (range 3) 1920 | -9/Mines | Upgraded with Utility slot (x1) 1989 | -9/Mines | Discovered exit to Materials (range 8) 1992 | -9/Mines | Received a Mining Laser from a helpful Derelict 2032 | -9/Mines | Reached level 4 2351 | -9/Mines | Received a Rocket Launcher from a helpful Derelict 2473 | -9/Mines | Entered Materials 2475 | -8/Materials | Reached level 5 2475 | -8/Materials | Reached level 6 2702 | -8/Materials | Reached level 7 2705 | -8/Materials | Upgraded with Utility slot (x1) 2742 | -8/Materials | Identified exit to Factory 2742 | -8/Materials | Discovered exit to Factory (range 13) 2887 | -8/Materials | Upgraded with Weapon slot (x1) 3072 | -8/Materials | Reached level 8 3281 | -8/Materials | Repaired Broken Missile Launcher 3385 | -8/Materials | Identified exit to Garrison 3389 | -8/Materials | Entered Garrison 3417 | -8/Garrison | Installed Relay Interface Framework 3462 | -8/Garrison | Reached level 9 3483 | -8/Garrison | Triggered checkpoint 3519 | -8/Garrison | Destroyed 7 combat bots 3640 | -8/Garrison | Garrison Relay disabled 3795 | -8/Garrison | Triggered checkpoint 3841 | -8/Garrison | Identified exit to Materials 3841 | -8/Garrison | Discovered exit to Materials (range 44) 3841 | -8/Garrison | Discovered exit to Materials (range 53) 3841 | -8/Garrison | Discovered exit to Materials (range 21) 3841 | -8/Garrison | Reached level 10 3909 | -8/Garrison | Discovered exit to Materials (range 30) 3909 | -8/Garrison | Discovered exit to Materials (range 58) 3909 | -8/Garrison | Discovered exit to Materials (range 26) 4097 | -8/Garrison | Expanded RIF knowledge: Structural Interface 4142 | -8/Garrison | Entered Materials 4171 | -8/Materials | Upgraded with Utility slot (x2) 4178 | -8/Materials | Reached level 11 4181 | -8/Materials | Upgraded with Propulsion slot (x1) 4435 | -8/Materials | Build established: Hacker-Tank 4571 | -8/Materials | Reached level 12 4592 | -8/Materials | Destroyed 10 combat bots 4619 | -8/Materials | Discovered exit to Factory (range 15) 5046 | -8/Materials | Build established: Hacker-Skirmisher 5950 | -8/Materials | Identified exit to Garrison 5950 | -8/Materials | Entered Garrison 6110 | -8/Garrison | Triggered checkpoint 6131 | -8/Garrison | Discovered exit to Factory (range 33) 6131 | -8/Garrison | Discovered exit to Factory (range 70) 6131 | -8/Garrison | Discovered exit to Factory (range 63) 6131 | -8/Garrison | Learned Factory security intel 6180 | -8/Garrison | Triggered checkpoint 6238 | -8/Garrison | Expanded RIF knowledge: Autooverride 6287 | -8/Garrison | Reached level 13 6303 | -8/Garrison | Entered Factory 6305 | -7/Factory | Reached level 14 6385 | -7/Factory | Upgraded with Utility slot (x1) 6623 | -7/Factory | Fabricated Powered Armor (x2) 6983 | -7/Factory | Identified exit to Garrison 7046 | -7/Factory | Garrison activated, responded to threat 7179 | -7/Factory | Reached level 15 7296 | -7/Factory | Upgraded with Power slot (x1) 7466 | -7/Factory | Identified exit to Storage 7466 | -7/Factory | Identified exit to Lower Caves 7687 | -7/Factory | Identified exit to Factory 7687 | -7/Factory | Discovered exit to Factory (range 17) 8152 | -7/Factory | Cargo convoy interrupted 8215 | -7/Factory | Found Prototype Device 8215 | -7/Factory | Identified Exp. ECM Suite 8340 | -7/Factory | Found Prototype Energy Cannon 8340 | -7/Factory | Identified Exp. Thermic Cannon 8791 | -7/Factory | Entered Lower Caves 8815 | -7/Lower Caves | Encountered a Warlord checkpoint 8904 | -7/Lower Caves | Learned Factory emergency access door positions 9011 | -7/Lower Caves | Learned Factory emergency access door positions 9108 | -7/Lower Caves | Build established: Hacker-Tank 9158 | -7/Lower Caves | Learned location of Zion (-6) 9181 | -7/Lower Caves | Attracted the attention of an 0b10 outpost 9191 | -7/Lower Caves | Reached level 16 9214 | -7/Lower Caves | Destroyed 8 combat bots 9326 | -7/Lower Caves | Identified exit to Lower Caves 9326 | -7/Lower Caves | Discovered exit to Lower Caves (range 16) 9460 | -7/Lower Caves | A Derelict revealed a hidden shortcut to meet someone special 9580 | -7/Lower Caves | Entered Data Miner 9580 | -7/Data Miner | Accompanied by 1 ally 9580 | -7/Data Miner | Identified exit to Proximity Caves 9580 | -7/Data Miner | Discovered exit to Proximity Caves (range 6) 9604 | -7/Data Miner | Met Data Miner 9642 | -7/Data Miner | Learned location of Section 7 (-2) 9642 | -7/Data Miner | Acquired the access code to Warlord's prototype stash 9660 | -7/Data Miner | Received God Mode back door access code from Data Miner 9705 | -7/Data Miner | Entered Proximity Caves 9705 | -6/Proximity Caves | Accompanied by 1 ally 9705 | -6/Proximity Caves | Spotted B-75 Beast 9709 | -6/Proximity Caves | Destroyed B-75 Beast 9726 | -6/Proximity Caves | Reached level 17 9754 | -6/Proximity Caves | Learned Factory non-interactive machine intel 10005 | -6/Proximity Caves | Discovered exit to Factory (range 11) 10019 | -6/Proximity Caves | Entered Factory 10021 | -6/Factory | Loaded intel: 182 non-interactive machine locations 10039 | -6/Factory | Build established: Hacker-Skirmisher 10173 | -6/Factory | Fabricated Antimatter Reactor? 10235 | -6/Factory | Upgraded with Utility slot (x1) 10304 | -6/Factory | Reached level 18 10340 | -6/Factory | Identified exit to Lower Caves 10820 | -6/Factory | Cargo convoy interrupted 10920 | -6/Factory | Upgraded with Power slot (x1) 11017 | -6/Factory | Identified exit to Factory 11017 | -6/Factory | Discovered exit to Factory (range 13) 11089 | -6/Factory | Identified exit to Garrison 11099 | -6/Factory | Entered Garrison 11133 | -6/Garrison | Triggered checkpoint 11256 | -6/Garrison | Found Relay Coupler [Proto] 11331 | -6/Garrison | Spotted B-75 Beast 11347 | -6/Garrison | Triggered checkpoint 11350 | -6/Garrison | Reached level 19 11350 | -6/Garrison | Destroyed B-75 Beast 11470 | -6/Garrison | Found Relay Coupler [Proto] 11598 | -6/Garrison | Discovered exit to Factory (range 10) 11598 | -6/Garrison | Discovered exit to Factory (range 34) 11598 | -6/Garrison | Discovered exit to Factory (range 58) 11621 | -6/Garrison | Triggered checkpoint 11671 | -6/Garrison | Triggered checkpoint 11857 | -6/Garrison | Spotted Executioner 11863 | -6/Garrison | Destroyed Executioner 11888 | -6/Garrison | Rewired Executioner 12046 | -6/Garrison | Build established: Hacker-Tank 12193 | -6/Garrison | Triggered checkpoint 12235 | -6/Garrison | Expanded RIF knowledge: Alert ID Control 12332 | -6/Garrison | Entered Factory 12332 | -5/Factory | Accompanied by 3 allies 12334 | -5/Factory | Reached level 20 12621 | -5/Factory | Reached level 21 12658 | -5/Factory | P-70 Sage assimilated allied Disruptor 5b 12667 | -5/Factory | Fabricated X-67 Chaingunner (x2) 12707 | -5/Factory | Identified exit to Upper Caves 12707 | -5/Factory | Identified exit to Extension 13064 | -5/Factory | Fabricated E-15 Imp (x2) 13298 | -5/Factory | Identified exit to Factory 13298 | -5/Factory | Discovered exit to Factory (range 8) 13411 | -5/Factory | Fabricated Imp. Heavy Treads (x1) 13491 | -5/Factory | Reached level 22 13518 | -5/Factory | Upgraded with Utility slot (x1) 13675 | -5/Factory | Entered Upper Caves 14239 | -5/Upper Caves | Encountered a Warlord checkpoint 14246 | -5/Upper Caves | Learned location of Armory (-4) 14287 | -5/Upper Caves | Identified exit to Upper Caves 14287 | -5/Upper Caves | Discovered exit to Upper Caves (range 6) 14408 | -5/Upper Caves | Entered another Upper Caves area 14744 | -5/Upper Caves | Learned 12 Factory zone layouts 14977 | -5/Upper Caves | Identified exit to Zhirov 14977 | -5/Upper Caves | Discovered exit to Zhirov (range 15) 15005 | -5/Upper Caves | Attracted the attention of an 0b10 checkpoint 15053 | -5/Upper Caves | Entered Zhirov 15053 | -5/Zhirov | Identified exit to Proximity Caves 15053 | -5/Zhirov | Discovered exit to Proximity Caves (range 3) 15082 | -5/Zhirov | Met Zhirov 15113 | -5/Zhirov | Learned location of Quarantine (-3) 15113 | -5/Zhirov | Learned location of Testing (-2) 15113 | -5/Zhirov | Learned location of Command (-1) 15137 | -5/Zhirov | Zhirov requested help retrieving the SGEMP Prototype 15163 | -5/Zhirov | Found Alien Artifact 15163 | -5/Zhirov | Identified Integrated Reactor 15163 | -5/Zhirov | Installed Integrated Reactor, increased core energy generation (+10) 15243 | -5/Zhirov | Found Alien Artifact 15307 | -5/Zhirov | Entered Proximity Caves 15309 | -4/Proximity Caves | Reached level 23 15483 | -4/Proximity Caves | Learned 8 Factory zone layouts 15483 | -4/Proximity Caves | Learned Extension emergency access door positions 15556 | -4/Proximity Caves | Learned Research terminal intel 15618 | -4/Proximity Caves | Destroyed 13 combat bots 15674 | -4/Proximity Caves | Reached level 24 15836 | -4/Proximity Caves | Learned 4 Research zone layouts 16183 | -4/Proximity Caves | Entered Factory 16184 | -4/Factory | Identified exit to Upper Caves 16500 | -4/Factory | Allied Derelicts emerged from ambush trap array 16540 | -4/Factory | Reached level 25 16540 | -4/Factory | Self-destructed Last Messages --------------- floor. 16502_ PR-JS0(g): "We were hacked into the system waiting for the right moment to spring our attack, but seeing as you've already triggered the mechanism and given away our position, let's roll with it." 16540_ Connecting with Terminal... >>Traps(Disarm) Disarmed 6 Chute Traps. >>Prototypes Downloading prototype IDs... Hvy. Proton Cannon Exp. Heat Sink Energy Mantle >>Schematic(Adv. Launcher Guidance Computer) Downloading schematic... Adv. Launcher Guidance Computer Rating: 8 Schematic downloaded. 16540_ Reached level 25. Map ----- +----------------------------------------------------+ | ########## # # # #????????????# | | #?# # + + #????????????# | | #?# ###########A########????????????##### | | #?# #?????????# ## #??????????????????? | | ### ###???????# > #??????????????????? | | # #???????#### #??????????????????? | | # ############# ###############?????? | | # #?# ## #?????? | | + #?# ## #?????? | | # #?# ## """" """" #?????? | | # ####### #?# ## """" """" #?????? | | ??????????????????????????## ## """" """" #?????? | | ???????????????????????? # """" """" #?????? | | ????????????????????? ??? + #?????? | | ????????????????#??#?? ?? # """" """" ####??? | | ????????????????????????#?# # """" """" # #??? | | ??????????????????????????# # """" """" ## #??? | | ?????????????" ????? ????## # """" """" ## #??? | | ?????????????????????###### # ## #??? | | ????????????????#?? ?# # ##################?# | | ???????????? ???#? ? + # #?#?## ##? | | ?????????? "???#?????# # ###### """ """ #?? | | ?????????????? #?#?? # "" # !!! # """ """ ##? | | ?????????????? ??????# "" + !!! # """ """ #?# | | ??????????????????? ?# "Tg# !!! # ##? | | ?????????????????????# ""@# # ##? | | ?????????????? ??#???# "" # # ### | | ????????????? ??#?? # + "" ####+########## | | ???????????? ? ??????####### "" | | ??????????? ? ??#? ? #??#?## """ ######### | | ????????????????#? ???####?# """ ## """" | | ?????????????????#?? #####?# """ ## """" | | ?????????????##??? ??##?#### ## """" | | ????????????????? ? ##???# ## """" | | ?????????????? ??? #?#### ######## | | ???????????????? ??###??#+####+######### % | | ????? #?#?## [ ### | | ?????####+####### ##???# ! ### [ | | ?????# #?### #####??# ### | | ?????# "" #?#?# ##??##?# ########+# | | ?????# Y" #???# ##?##?## + | | ?????# "" #???# ##?##?## # | | ?????# #???# #?#??### # | | ?????# """ #???# #?#?#??# + | | ?????# """ #???# #???#### ########## | | ?????# """ #???# ###?#?## #####?#### | | ?????# #?### #####?## #?#####??? | | ?????############ #??### #########? | | ????????# # T" ############################ | | ????????# + " | +----------------------------------------------------+ Best States ------------- Heat Dissipation 100 Energy Generation 87 Energy Capacity 820 Matter Stores 500 Matter Capacity 500 Sight Range 17 Terrain Scan Range 16 Terrain Scan Density 210 Jamming Range 14 Armor Coverage 800 Resistance: KI 35 Resistance: TH 35 Resistance: EX 35 Resistance: EM 35 Resistance: I 35 Resistance: S 35 Resistance: P 35 Propulsion Shielding 90 Utility Shielding 33 Weapon Cycling 20 Phase Shifting 15 Evasion (%) 55 Targeting Accuracy 5 Core Analysis 6 Recoil Reduction 4 Matter Filtering 45 Salvage Targeting 3 Offensive Hacking 45 Defensive Hacking 10 Trap Extractor Capacity 4 Item Schematics ----------------- Wheel | -10/Materials | Hacked Datajack | -10/Materials | Hacked Lrn. Tractor Beam | -8/Materials | Scanalyzed Hcp. Matter Pod | -8/Materials | Scanalyzed Missile Launcher | -8/Materials | Scanalyzed Hacking Suite | -8/Materials | Hacked Arm. Wheel | -8/Materials | Hacked Imp. Grenade Launcher | -8/Materials | Hacked Powered Armor | -8/Materials | Hacked Salvage Targeting Computer | -8/Materials | Hacked Transport Network Coupler | -8/Materials | Hacked Trap Extractor | -8/Materials | Hacked Remote Datajack | -8/Materials | Scanalyzed Adv. EMP Blaster | -8/Materials | Scanalyzed System Restoration Module | -8/Materials | Scanalyzed Hpw. Shotgun | -8/Materials | Extracted Adv. Targeting Computer | -8/Materials | Extracted Pulse Rifle | -8/Materials | Extracted Matter Filter | -8/Materials | Hacked Cld. Ion Engine | -8/Materials | Hacked Imp. Trap Extractor | -8/Garrison | Hacked System Guard | -7/Factory | Hacked Imp. Hacking Suite | -7/Factory | Hacked Combat Drone Bay | -7/Data Miner | Free Lgt. Regenerative Plating | -7/Data Miner | Free Biomechanical Wings | -7/Data Miner | Free Thermal Defense Suite | -7/Data Miner | Free Prc. Rocket Launcher | -7/Data Miner | Free Field Propulsion Drive | -7/Data Miner | Free Imp. Shock Absorption System | -7/Data Miner | Free Enh. Gauss Cannon | -7/Data Miner | Free Neutrino Core | -7/Data Miner | Free Antimatter Reactor | -7/Data Miner | Free Imp. Heavy Treads | -6/Factory | Scanalyzed Assault Drone Bay | -5/Zhirov | Free Exp. Heat Sink | -5/Zhirov | Free Exp. Optical Array | -5/Zhirov | Free Imp. Arc Thrower | -5/Zhirov | Free Adv. Launcher Guidance Computer | -4/Factory | Hacked Robot Schematics ------------------ M-13 Machinist | -10/Materials | Hacked O-16 Technician | -10/Materials | Hacked A-02 Transporter | -10/Materials | Hacked G-34 Mercenary | -10/Materials | Hacked H-55 Commando | -8/Materials | Hacked Y-45 Defender | -8/Materials | Hacked L-31 Rogue | -7/Factory | Hacked G-47 Trooper | -7/Data Miner | Free G-50 Soldier | -7/Data Miner | Free L-41 Fighter | -7/Data Miner | Free A-15 Conveyor | -7/Data Miner | Free X-67 Chaingunner | -7/Data Miner | Free Fabricated ------------ Powered Armor | x2 | -7/Factory Antimatter Reactor | x2 | -6/Factory X-67 Chaingunner | x2 | -5/Factory E-15 Imp | x2 | -5/Factory | Preloaded Imp. Heavy Treads | x1 | -5/Factory Alien Tech Used ----------------- Integrated Reactor Achievements -------------- None Challenges ------------ None RPGLIKE | -11 -10 -10 -10 -9 -8 -8 -8 -8 -7 -7 -7 -6 -6 -6 -5 -5 -5 -5 -4 -4 --------- Run | Yrd Mat Min Exi Min Mat Gar Mat Gar Fac Low Dat Pro Fac Gar Fac Upp Upp Zhi Pro Fac Levels Raised 24 | . 1 . 1 1 4 2 2 1 2 1 . 1 1 1 3 . . . 2 1 XP Earned 42019 | 6000 1925 1000 200 1989 5914 3965 2418 615 3930 613 220 1438 2217 1358 3796 319 269 220 2415 1198 XP Spent 37165 | 5600 1600 . . 3150 4200 . 6770 . 4660 90 . . 4640 2255 4200 . . . . . Upgrades 50 | 13 2 . . 3 4 . 6 . 5 1 . . 10 4 2 . . . . . Power Slot 2 | . . . . . . . . . 1 . . . 1 . . . . . . . Propulsion Slot 3 | 1 1 . . . . . 1 . . . . . . . . . . . . . Utility Slot 10 | 3 . . . 1 1 . 2 . 1 . . . 1 . 1 . . . . . Weapon Slot 3 | 1 1 . . . 1 . . . . . . . . . . . . . . . Core Integrity 5 | . . . . . . . . . 2 . . . 2 1 . . . . . . Heat Dissipation 10 | . . . . . . . 2 . . . . . 6 2 . . . . . . Inventory Capacity 7 | 2 . . . 2 . . 1 . 1 . . . . 1 . . . . . . Sight Range 1 | 1 . . . . . . . . . . . . . . . . . . . . Terrain Scan Density 2 | 1 . . . . . . . . . 1 . . . . . . . . . . Hack Attack % 5 | 2 . . . . 2 . . . . . . . . . 1 . . . . . Hack Defense % 2 | 2 . . . . . . . . . . . . . . . . . . . . Protomatter Created 4424 | . 182 50 . 133 98 195 856 144 405 191 . 111 295 472 554 26 121 . 565 26 Integrity Restored 4188 | . 193 67 . 247 175 412 817 168 540 133 . 74 236 380 276 21 101 . 317 31 Core 2419 | . 116 9 . 187 101 221 553 53 325 38 . 38 179 239 128 15 6 . 192 19 Parts 1769 | . 77 58 . 60 74 191 264 115 215 95 . 36 57 141 148 6 95 . 125 12 Protomatter Decayed 2383 | . 63 25 . 10 35 137 339 85 215 65 . 98 153 214 481 17 . . 433 13 Game ------ Seed SniperBarrageDiverter Manual? 0 Play Time 02:31:44 Cumulative 722.2 hours Start 2024.05.13 @ 22:25:45 End 2024.05.16 @ 20:27:31 Sessions 3 Manual Loads 0 Difficulty Explorer Special Mode Winter2019/RPGLIKE Game No. 295 Rogue 265 Adventurer 3 Explorer 27 Win Type - Total 16 Types 10/3/1/1/0/1/0/0/0 Lore% 91 Gallery% 96 Achievement% 85 Wizard Run 0 Options --------- Layout 2 ASCII 0 Keyboard 0 Movement Numpad Keybinds 0 Fullscreen 2 Font 24/Smallcaps Map View 50x44 Zoom Use 0% Tactical HUD 1 Map Filters NONE Filters NONE Steam 1 RUN: 5c23058c-7773-4d65-acee-88a9acd4c24d